fUST/lending_fUST_20250328
["ID","MTS","AMOUNT","RATE_DAILY","PERIOD"]
[356753412,1743115834245,-447.0,0.00036291,2]
[356753413,1743115834254,-447.0,0.00036291,2]
[356753414,1743115834264,-447.0,0.00036291,2]
[356753415,1743115834273,-447.0,0.00036291,2]
[356753416,1743115834283,-447.0,0.00036291,2]
[356753417,1743115834292,-447.0,0.00036291,2]
[356753418,1743115834301,-447.0,0.00036291,2]
[356753419,1743115834311,-447.0,0.00036291,2]
[356753420,1743115834320,-447.0,0.00036291,2]
[356753421,1743115834330,-447.0,0.00036291,2]
[356753422,1743115834339,-447.0,0.00036291,2]
[356753423,1743115834348,-447.0,0.00036291,2]
[356753424,1743115834358,-447.0,0.00036291,2]
[356753425,1743115834368,-447.0,0.00036291,2]
[356753426,1743115834378,-447.0,0.00036291,2]
[356753427,1743115834387,-447.0,0.00036291,2]
[356753428,1743115834396,-447.0,0.00036291,2]
[356753429,1743115834406,-447.0,0.00036291,2]
[356753430,1743115834416,-447.0,0.00036291,2]
[356753431,1743115834425,-447.0,0.00036291,2]
[356753432,1743115834435,-447.0,0.00036291,2]
[356753433,1743115834444,-447.0,0.00036291,2]
[356753434,1743115834454,-447.0,0.00036291,2]
[356753435,1743115834463,-447.0,0.00036291,2]
[356753436,1743115834473,-447.0,0.00036291,2]
[356753437,1743115834483,-447.0,0.00036291,2]
[356753438,1743115834493,-447.0,0.00036291,2]
[356753439,1743115834502,-447.0,0.00036291,2]
[356753440,1743115834511,-447.0,0.00036291,2]
[356753441,1743115834520,-447.0,0.00036291,2]
[356753442,1743115834530,-447.0,0.00036291,2]
[356753443,1743115834539,-447.0,0.00036291,2]
[356753444,1743115834549,-447.0,0.00036291,2]
[356753445,1743115834559,-447.0,0.00036291,2]
[356753446,1743115834568,-447.0,0.00036291,2]
[356753447,1743115834577,-447.0,0.00036291,2]
[356753448,1743115834587,-447.0,0.00036291,2]
[356753449,1743115834596,-447.0,0.00036291,2]
[356753450,1743115834606,-447.0,0.00036291,2]
[356753451,1743115834615,-447.0,0.00036291,2]
[356753452,1743115834625,-447.0,0.00036291,2]
[356753453,1743115834634,-447.0,0.00036291,2]
[356753454,1743115834643,-447.0,0.00036291,2]
[356753455,1743115834653,-447.0,0.00036291,2]
[356753456,1743115834663,-447.0,0.00036291,2]
[356753457,1743115834672,-447.0,0.00036291,2]
[356753458,1743115834682,-447.0,0.00036291,2]
[356753459,1743115834691,-447.0,0.00036291,2]
[356753460,1743115834705,-447.0,0.00036291,2]
[356753461,1743115834714,-447.0,0.00036291,2]
[356753462,1743115834723,-447.0,0.00036291,2]
[356753463,1743115834733,-447.0,0.00036291,2]
[356753464,1743115834743,-447.0,0.00036291,2]
[356753465,1743115834752,-447.0,0.00036291,2]
[356753466,1743115834762,-447.0,0.00036291,2]
[356753467,1743115834771,-447.0,0.00036291,2]
[356753468,1743115834782,-447.0,0.00036291,2]
[356753469,1743115834792,-447.0,0.00036291,2]
[356753470,1743115834801,-447.0,0.00036291,2]
[356753471,1743115834811,-447.0,0.00036291,2]
[356753472,1743115834820,-447.0,0.00036291,2]
[356753473,1743115834830,-447.0,0.00036291,2]
[356753474,1743115834839,-447.0,0.00036291,2]
[356753475,1743115834848,-447.0,0.00036291,2]
[356753476,1743115834858,-447.0,0.00036291,2]
[356753477,1743115834868,-447.0,0.00036291,2]
[356753478,1743115834878,-447.0,0.00036291,2]
[356753479,1743115834887,-447.0,0.00036291,2]
[356753480,1743115834897,-447.0,0.00036291,2]
[356753481,1743115834907,-447.0,0.00036291,2]
[356753482,1743115834916,-447.0,0.00036291,2]
[356753483,1743115834925,-447.0,0.00036291,2]
[356753484,1743115834934,-447.0,0.00036291,2]
[356753485,1743115834944,-447.0,0.00036291,2]
[356753486,1743115834953,-447.0,0.00036291,2]
[356753487,1743115834962,-447.0,0.00036291,2]
[356753488,1743115834972,-447.0,0.00036291,2]
[356753489,1743115834981,-447.0,0.00036291,2]
[356753490,1743115834991,-447.0,0.00036291,2]
[356753491,1743115835000,-447.0,0.00036291,2]
[356753492,1743115835011,-209.0,0.00036291,2]
[356753493,1743115835020,-209.0,0.00036291,2]
[356753494,1743115835029,-209.0,0.00036291,2]
[356753495,1743115835038,-209.0,0.00036291,2]
[356753496,1743115835047,-209.0,0.00036291,2]
[356753497,1743115835056,-209.0,0.00036291,2]
[356753498,1743115835066,-209.0,0.00036291,2]
[356753499,1743115835075,-209.0,0.00036291,2]
[356753500,1743115835084,-209.0,0.00036291,2]
[356753501,1743115835094,-209.0,0.00036291,2]
[356753502,1743115835103,-209.0,0.00036291,2]
[356753503,1743115835112,-209.0,0.00036291,2]
[356753504,1743115835121,-209.0,0.00036291,2]
[356753505,1743115835131,-209.0,0.00036291,2]
[356753506,1743115835140,-209.0,0.00036291,2]
[356753507,1743115835150,-209.0,0.00036291,2]
[356753508,1743115835159,-209.0,0.00036291,2]
[356753509,1743115835169,-209.0,0.00036291,2]
[356753510,1743115835179,-209.0,0.00036291,2]
[356753511,1743115835188,-209.0,0.00036291,2]
[356753512,1743115835197,-209.0,0.00036291,2]
[356753513,1743115835206,-209.0,0.00036291,2]
[356753514,1743115835215,-209.0,0.00036291,2]
[356753515,1743115835224,-209.0,0.00036291,2]
[356753516,1743115835234,-209.0,0.00036291,2]
[356753517,1743115835243,-209.0,0.00036291,2]
[356753518,1743115835252,-209.0,0.00036291,2]
[356753519,1743115835262,-209.0,0.00036291,2]
[356753520,1743115835271,-209.0,0.00036291,2]
[356753521,1743115835280,-209.0,0.00036291,2]
[356753522,1743115835290,-209.0,0.00036291,2]
[356753523,1743115835299,-209.0,0.00036291,2]
[356753524,1743115835308,-209.0,0.00036291,2]
[356753525,1743115835318,-209.0,0.00036291,2]
[356753526,1743115835327,-209.0,0.00036291,2]
[356753527,1743115835336,-209.0,0.00036291,2]
[356753528,1743115835346,-209.0,0.00036291,2]
[356753529,1743115835355,-209.0,0.00036291,2]
[356753530,1743115835365,-209.0,0.00036291,2]
[356753531,1743115835374,-209.0,0.00036291,2]
[356753532,1743115835383,-209.0,0.00036291,2]
[356753533,1743115835392,-209.0,0.00036291,2]
[356753534,1743115835402,-209.0,0.00036291,2]
[356753535,1743115835411,-209.0,0.00036291,2]
[356753536,1743115835420,-209.0,0.00036291,2]
[356753537,1743115835429,-209.0,0.00036291,2]
[356753538,1743115835439,-209.0,0.00036291,2]
[356753539,1743115835448,-209.0,0.00036291,2]
[356753540,1743115835458,-209.0,0.00036291,2]
[356753541,1743115835467,-209.0,0.00036291,2]
[356753542,1743115835476,-209.0,0.00036291,2]
[356753543,1743115835486,-209.0,0.00036291,2]
[356753544,1743115835495,-209.0,0.00036291,2]
[356753545,1743115835504,-209.0,0.00036291,2]
[356753546,1743115835514,-209.0,0.00036291,2]
[356753547,1743115835523,-209.0,0.00036291,2]
[356753548,1743115835532,-209.0,0.00036291,2]
[356753549,1743115835541,-209.0,0.00036291,2]
[356753550,1743115835551,-209.0,0.00036291,2]
[356753551,1743115835560,-209.0,0.00036291,2]
[356753552,1743115835570,-209.0,0.00036291,2]
[356753553,1743115835580,-209.0,0.00036291,2]
[356753554,1743115835589,-209.0,0.00036291,2]
[356753555,1743115835598,-209.0,0.00036291,2]
[356753556,1743115835607,-209.0,0.00036291,2]
[356753557,1743115835616,-209.0,0.00036291,2]
[356753558,1743115835625,-209.0,0.00036291,2]
[356753559,1743115835634,-209.0,0.00036291,2]
[356753560,1743115835643,-209.0,0.00036291,2]
[356753561,1743115835653,-209.0,0.00036291,2]
[356753562,1743115835662,-209.0,0.00036291,2]
[356753563,1743115835672,-209.0,0.00036291,2]
[356753564,1743115835681,-209.0,0.00036291,2]
[356753565,1743115835690,-209.0,0.00036291,2]
[356753566,1743115835704,-209.0,0.00036291,2]
[356753567,1743115835713,-209.0,0.00036291,2]
[356753568,1743115835722,-209.0,0.00036291,2]
[356753569,1743115835731,-209.0,0.00036291,2]
[356753570,1743115835741,-209.0,0.00036291,2]
[356753571,1743115835751,-209.0,0.00036291,2]
[356753572,1743115835770,-209.0,0.00036291,2]
[356753573,1743115835783,-209.0,0.00036291,2]
[356753574,1743115835792,-209.0,0.00036291,2]
[356753575,1743115835802,-209.0,0.00036291,2]
[356753576,1743115835811,-209.0,0.00036291,2]
[356753577,1743115835821,-209.0,0.00036291,2]
[356753578,1743115835831,-209.0,0.00036291,2]
[356753579,1743115835840,-209.0,0.00036291,2]
[356753580,1743115835850,-209.0,0.00036291,2]
[356753581,1743115835860,-209.0,0.00036291,2]
[356753582,1743115835870,-209.0,0.00036291,2]
[356753583,1743115835879,-209.0,0.00036291,2]
[356753584,1743115835889,-209.0,0.00036291,2]
[356753585,1743115835898,-209.0,0.00036291,2]
[356753586,1743115835908,-209.0,0.00036291,2]
[356753587,1743115835918,-209.0,0.00036291,2]
[356753588,1743115835927,-209.0,0.00036291,2]
[356753589,1743115835936,-457.0,0.00036291,2]
[356753590,1743115835946,-457.0,0.00036291,2]
[356753591,1743115835955,-278.0,0.00036291,2]
[356753592,1743115835966,-278.0,0.00036291,2]
[356753593,1743115835975,-278.0,0.00036291,2]
[356753594,1743115835985,-1313.4034325,0.00036368,2]
[356753595,1743115835995,-273.61224719,0.00036371,15]
[356753596,1743115836004,-191.52857303,0.00036371,15]
[356753597,1743115836015,-222.01880781,0.00036371,15]
[356753598,1743115836025,-294661.455301,0.00036372,3]
[356753599,1743115836035,-281116.758952,0.00036372,3]
[356753600,1743115836047,-500.0,0.00036373,5]
[356753601,1743115836057,-500.0,0.00036373,5]
[356753602,1743115836067,-500.82198181,0.00036373,5]
[356753603,1743115836076,-500.0,0.00036373,5]
[356753604,1743115836265,-500.0,0.00036373,5]
[356753605,1743115836275,-500.0,0.00036373,5]
[356753606,1743115836285,-500.0,0.00036373,5]
[356753607,1743115836295,-500.0,0.00036373,5]
[356753608,1743115836304,-500.0,0.00036373,5]
[356753609,1743115836314,-500.0,0.00036373,5]
[356753610,1743115836324,-500.0,0.00036373,5]
[356753611,1743115836333,-500.0,0.00036373,5]
[356753612,1743115836343,-500.0,0.00036373,5]
[356753613,1743115836353,-19563.82310487,0.00036417,13]
[356753614,1743115836363,-300.06856609,0.00036453,7]
[356753615,1743115836372,-500.0,0.000365,32]
[356753616,1743115836382,-500.0,0.00036873,5]
[356753617,1743115836391,-500.0,0.00037,32]
[356753618,1743115836400,-19563.82310487,0.00037003,13]
[356753619,1743115836410,-203.0,0.000372,30]
[356753620,1743115836419,-20079.7684966,0.00037338,3]
[356753621,1743115836429,-2500.0,0.00037486,3]
[356753622,1743115836438,-2500.0,0.00037495,3]
[356753623,1743115836447,-500.0,0.000375,32]
[356753624,1743115836457,-2500.0,0.00037504,3]
[356753625,1743115836467,-2500.0,0.00037512,3]
[356753626,1743115836476,-2500.0,0.00037521,3]
[356753627,1743115836486,-2500.0,0.0003753,3]
[356753628,1743115836495,-2500.0,0.00037539,3]
[356753629,1743115836505,-2500.0,0.00037548,3]
[356753630,1743115836515,-2500.0,0.00037556,3]
[356753631,1743115836525,-2500.0,0.00037565,3]
[356753632,1743115836535,-500.0,0.00037573,5]
[356753633,1743115836544,-500.0,0.00037573,5]
[356753634,1743115836553,-500.0,0.00037573,5]
[356753635,1743115836562,-500.0,0.00037573,5]
[356753636,1743115836572,-518.54321348,0.00037573,5]
[356753637,1743115836581,-279.75278749,0.00037573,5]
[356753638,1743115836591,-500.0,0.00037573,5]
[356753639,1743115836600,-500.0,0.00037573,5]
[356753640,1743115836609,-518.54248024,0.00037573,5]
[356753641,1743115836618,-500.0,0.00037573,5]
[356753642,1743115836627,-500.63955412,0.00037573,5]
[356753643,1743115836637,-500.0,0.00037573,5]
[356753644,1743115836646,-500.0,0.00037573,5]
[356753645,1743115836655,-500.0,0.00037573,5]
[356753646,1743115836665,-500.0,0.00037573,5]
[356753647,1743115836674,-398.96349525,0.00037573,5]
[356753648,1743115836684,-500.0,0.00037573,5]
[356753649,1743115836693,-500.0,0.00037573,5]
[356753650,1743115836708,-500.0,0.00037573,5]
[356753651,1743115836718,-500.0,0.00037573,5]
[356753652,1743115836727,-301.20596459,0.00037573,5]
[356753653,1743115836737,-301.40636211,0.00037573,5]
[356753654,1743115836747,-501.68725214,0.00037573,5]
[356753655,1743115836756,-500.0,0.00037573,5]
[356753656,1743115836766,-613.4017958,0.00037573,5]
[356753657,1743115836776,-164.61654619,0.00037573,5]
[356753658,1743115836787,-500.0,0.00037573,5]
[356753659,1743115836796,-452.03626924,0.00037573,5]
[356753660,1743115836806,-500.98790136,0.00037573,5]
[356753661,1743115836816,-500.0,0.00037573,5]
[356753662,1743115836825,-434.25996514,0.00037573,5]
[356753663,1743115836835,-500.86846009,0.00037573,5]
[356753664,1743115836844,-500.0,0.00037573,5]
[356753665,1743115836854,-508.87241133,0.00037573,5]
[356753666,1743115836863,-502.04355511,0.00037573,5]
[356753667,1743115836874,-500.0,0.00037573,5]
[356753668,1743115836883,-500.0,0.00037573,5]
[356753669,1743115836892,-500.0,0.00037573,5]
[356753670,1743115836901,-500.0,0.00037573,5]
[356753671,1743115836910,-500.0,0.00037573,5]
[356753672,1743115836919,-2500.0,0.00037574,3]
[356753673,1743115836929,-2500.0,0.00037583,3]
[356753674,1743115836938,-446.82062741,0.00037589,30]
[356753675,1743115836948,-153.75584444,0.00037589,30]
[356753676,1743115836957,-19563.82310487,0.0003759,14]
[356753677,1743115836966,-2500.0,0.00037592,3]
[356753678,1743115836976,-2500.0,0.000376,3]
[356753679,1743115836985,-2500.0,0.00037609,3]
[356753680,1743115836994,-2500.0,0.00037618,3]
[356753681,1743115837004,-2500.0,0.00037627,3]
[356753682,1743115837013,-2500.0,0.00037636,3]
[356753683,1743115837022,-2500.0,0.00037644,3]
[356753684,1743115837031,-2500.0,0.00037653,3]
[356753685,1743115837041,-2500.0,0.00037662,3]
[356753686,1743115837050,-2500.0,0.00037671,3]
[356753687,1743115837060,-150.94603788,0.00037673,5]
[356753688,1743115837069,-150.0,0.00037673,5]
[356753689,1743115837079,-20079.7684966,0.00037678,3]
[356753690,1743115837088,-2500.0,0.0003768,3]
[356753691,1743115837097,-2500.0,0.00037688,3]
[356753692,1743115837107,-2500.0,0.00037697,3]
[356753693,1743115837116,-2500.0,0.00037706,3]
[356753694,1743115837125,-2500.0,0.00037715,3]
[356753695,1743115837134,-2500.0,0.00037724,3]
[356753696,1743115837144,-500.94491666,0.00037725,5]
[356753697,1743115837153,-613.07030683,0.00037725,5]
[356753698,1743115837162,-2500.0,0.00037732,3]
[356753699,1743115837172,-2500.0,0.00037741,3]
[356753700,1743115837181,-2500.0,0.0003775,3]
[356753701,1743115837190,-2500.0,0.00037759,3]
[356753702,1743115837199,-2500.0,0.00037768,3]
[356753703,1743115837209,-535.7491861,0.00037773,5]
[356753704,1743115837218,-2500.0,0.00037776,3]
[356753705,1743115837227,-446.82062741,0.00037781,30]
[356753706,1743115837236,-2500.0,0.00037785,3]
[356753707,1743115837245,-2500.0,0.00037794,3]
[356753708,1743115837254,-2500.0,0.00037803,3]
[356753709,1743115837264,-2500.0,0.00037812,3]
[356753710,1743115837273,-1000.0,0.00037819,7]
[356753711,1743115837283,-2500.0,0.0003782,3]
[356753712,1743115837292,-20079.7684966,0.00037821,3]
[356753713,1743115837303,-500.0,0.00037873,5]
[356753714,1743115837312,-500.0,0.00037873,5]
[356753715,1743115837322,-500.0,0.00037873,5]
[356753716,1743115837331,-153.75584444,0.0003789,30]
[356753717,1743115837340,-446.82062741,0.00037973,30]
[356753718,1743115837349,-783.0,0.00037983,2]
[356753719,1743115837358,-500.0,0.00038,32]
[356753720,1743115837367,-446.82062741,0.00038137,30]
[356753721,1743115837377,-153.75584444,0.00038164,30]
[356753722,1743115837386,-19563.82310487,0.00038176,14]
[356753723,1743115837395,-151.0,0.00038176,14]
[356753724,1743115837404,-151.0,0.00038176,14]
[356753725,1743115837413,-151.0,0.00038176,14]
[356753726,1743115837422,-390.43888922,0.00038221,5]
[356753727,1743115837432,-203.0,0.0003827,30]
[356753728,1743115837442,-446.82062741,0.00038329,30]
[356753729,1743115837451,-600.0,0.000384,2]
[356753730,1743115837461,-153.75584444,0.00038466,30]
[356753731,1743115837470,-500.0,0.000385,32]
[356753732,1743115837479,-446.82062741,0.00038521,30]
[356753733,1743115837489,-1000.0,0.00038611,6]
[356753734,1743115837498,-446.82062741,0.00038685,30]
[356753735,1743115837507,-153.75584444,0.0003874,30]
[356753736,1743115837516,-1000.0,0.00038748,6]
[356753737,1743115837526,-19563.82310487,0.00038762,14]
[356753738,1743115837535,-189.255578,0.00038799,4]
[356753739,1743115837543,-600.0,0.000388,2]
[356753740,1743115837552,-446.82062741,0.00038877,30]
[356753741,1743115837561,-1000.0,0.00038885,6]
[356753742,1743115837571,-200.0,0.000389,2]
[356753743,1743115837580,-300.0,0.00038982,7]
[356753744,1743115837589,-500.0,0.00039,32]
[356753745,1743115837598,-1120.71477576,0.00039,120]
[356753746,1743115837607,-1000.0,0.00039022,6]
[356753747,1743115837616,-20079.7684966,0.00039031,3]
[356753748,1743115837626,-446.82062741,0.00039041,30]
[356753749,1743115837638,-153.75584444,0.00039041,30]
[356753750,1743115837647,-200.0,0.000391,5]
[356753751,1743115837661,-1000.0,0.00039159,6]
[356753752,1743115837671,-600.0,0.000392,2]
[356753753,1743115837681,-446.82062741,0.00039233,30]
[356753754,1743115837692,-1000.0,0.00039296,6]
[356753755,1743115837708,-151.0,0.000393,20]
[356753756,1743115837717,-153.75584444,0.00039315,30]
[356753757,1743115837727,-203.0,0.0003934,30]
[356753758,1743115837739,-19563.82310487,0.00039348,15]
[356753759,1743115837748,-418.47884548,0.00039349,2]
[356753760,1743115837759,-446.82062741,0.00039425,30]
[356753762,1743115837768,-1000.0,0.00039433,6]
[356753764,1743115837778,-175.29141861,0.000395,4]
[356753766,1743115837789,-500.0,0.000395,32]
[356753768,1743115837798,-1000.0,0.0003957,6]
[356753770,1743115837807,-372.38227502,0.00039573,5]
[356753773,1743115837817,-500.0,0.00039573,5]
[356753776,1743115837828,-311.85633476,0.00039573,5]
[356753778,1743115837837,-501.60821472,0.00039573,5]
[356753779,1743115837847,-267.48486704,0.00039573,5]
[356753780,1743115837857,-446.82062741,0.00039589,30]
[356753781,1743115837867,-153.75584444,0.00039589,30]
[356753782,1743115837877,-40159.5369932,0.0003959,3]
[356753784,1743115837888,-160.0,0.00039599,30]
[356753786,1743115837898,-305450.6098598,0.000396,2]
[356753788,1743115837910,-151.0,0.000396,14]
[356753789,1743115837920,-151.0,0.000396,14]
[356753790,1743115837930,-151.0,0.000396,14]
[356753791,1743115837939,-151.0,0.000396,14]
[356753792,1743115837949,-571.744593,0.000396,14]
[356753793,1743115837958,-151.0,0.000396,14]
[356753794,1743115837967,-571.744593,0.000396,14]
[356753795,1743115837977,-151.0,0.000396,14]
[356753796,1743115837987,-698.97899,0.000396,14]
[356753797,1743115837997,-698.97899,0.000396,14]
[356753798,1743115838006,-151.0,0.000396,14]
[356753799,1743115838016,-151.0,0.000396,14]
[356753800,1743115838025,-151.0,0.000396,14]
[356753801,1743115838035,-506.965905,0.000396,14]
[356753802,1743115838044,-506.965905,0.000396,14]
[356753803,1743115838053,-151.0,0.000396,14]
[356753804,1743115838063,-22947.69864082,0.000396,2]
[356753805,1743115838072,-765.25568133,0.000396,2]
[356753806,1743115838081,-3000.0,0.00039664,60]
[356753807,1743115838091,-1000.0,0.00039699,30]
[356753808,1743115838100,-1000.0,0.00039707,6]
[356753809,1743115838109,-183.321,0.0003979,56]
[356753810,1743115838118,-1000.0,0.00039844,6]
[356753811,1743115838127,-541.0,0.00039904,2]
[356753812,1743115838136,-150.0,0.00039904,2]
[356753813,1743115838146,-2262.0,0.00039904,2]
[356753814,1743115838155,-1916.0,0.00039904,2]
[356753815,1743115838165,-400.0,0.00039904,2]
[356753816,1743115838174,-19563.82310487,0.00039934,15]
[356753817,1743115838183,-3376.971,0.00039949,14]
[356753818,1743115838193,-505.6890105,0.00039973,5]
[356753819,1743115838202,-500.0,0.00039973,5]
[356753820,1743115838212,-500.0,0.00039973,5]
[356753821,1743115838221,-500.0,0.00039973,5]
[356753823,1743115838230,-500.0,0.00039973,5]
[356753824,1743115838240,-500.0,0.00039973,5]
[356753825,1743115838249,-150.0,0.00039973,5]
[356753826,1743115838259,-1000.0,0.00039981,6]
[356753827,1743115838268,-151.0,0.00039989,2]
[356753828,1743115838277,-358.62307557,0.0003999,14]
[356753829,1743115838286,-160.0,0.00039998,30]
[356753830,1743115838296,-160.98389558,0.00039999,30]
[356753831,1743115838305,-446.90000373,0.00039999,31]
[356753832,1743115838315,-4972.27056189,0.00039999,2]
[356753833,1743115838325,-4972.27056189,0.00039999,2]
[356753834,1743115838335,-4972.27056189,0.00039999,2]
[356753835,1743115838344,-4972.27056189,0.00039999,2]
[356753836,1743115838354,-4972.27056189,0.00039999,2]
[356753837,1743115838363,-4972.27056188,0.00039999,2]
[356753838,1743115838373,-4972.27056189,0.00039999,2]
[356753839,1743115838382,-518.0438849,0.00039999,31]
[356753840,1743115838391,-7682.36066806,0.00039999,2]
[356753841,1743115838400,-153.36917616,0.00039999,31]
[356753842,1743115838410,-151.0,0.0004,13]
[356753843,1743115838419,-151.0,0.0004,15]
[356753844,1743115838428,-151.0,0.0004,14]
[356753845,1743115838572,-151.0,0.0004,14]
[356753846,1743115838582,-279.367142,0.0004,14]
[356753847,1743115838591,-3158384.23536658,0.0004,90]
[356753848,1743115838600,-344.6,0.0004,7]
[356753849,1743115838610,-500.0,0.0004,15]
[356753850,1743115838619,-500.0,0.0004,15]
[356753851,1743115838628,-1504189.74962265,0.0004,120]
[356753852,1743115839012,-5012.95535351,0.0004,120]
[356753853,1743115839024,-193271.90276817,0.0004,120]
[356753854,1743115839035,-169436.6947277,0.0004,120]
[356753898,1743115840349,-267.0,0.0003629,2]
[356753900,1743115840358,-201.18571004,0.00038176,14]
[356753902,1743115840367,-1000.0,0.00039,120]
[356753904,1743115840376,-267.0,0.0003929,2]
[356753905,1743115840386,-267.0,0.0003929,2]
[356753906,1743115840395,-952.451718,0.0004,120]
[356753908,1743115840407,-1000.0,0.0004,120]
[356753910,1743115840419,-9325.56202559,0.0004,120]
[356753912,1743115840430,-724.22604502,0.0004,120]
[356753914,1743115840442,-1607.33871831,0.0004,120]
[356753917,1743115840453,-50780.83114766,0.0004,120]
[356753919,1743115840464,-15561.69524168,0.0004,120]
[356753921,1743115840475,-8769.33151287,0.0004,120]
[356753925,1743115840488,-2856.88826649,0.0004,120]
[356753929,1743115840504,-292.97,0.0004,120]
[356753932,1743115840516,-2260.17805655,0.0004,120]
[356753947,1743115840980,-450.66000005,0.0004,120]
[356753948,1743115840992,-59526.64346206,0.0004,120]
[356753949,1743115841004,-17171.01512391,0.0004,120]
[356753950,1743115841249,-78.70856004,0.0004,120]
[356753961,1743115844097,-162.202776,0.00038176,14]
[356753962,1743115844107,-162.202776,0.000396,14]
[356753963,1743115844116,-11176.72825839,0.0004,120]
[356753964,1743115844201,-118512.75597007,0.0004,120]
[356753965,1743115844210,-150.0,0.0004,14]
[356753966,1743115844219,-150.0,0.0004,14]
[356753967,1743115844229,-31797.03006984,0.0004,120]
[356753968,1743115844239,-507.92046637,0.0004,30]
[356753969,1743115844249,-150.15,0.0004,60]
[356753970,1743115844259,-250.0,0.0004,7]
[356753971,1743115844273,-250.0,0.0004,7]
[356753972,1743115844283,-250.0,0.0004,7]
[356753973,1743115844292,-250.0,0.0004,7]
[356753975,1743115844302,-317.0,0.0004,14]
[356753977,1743115844311,-500.0,0.0004,120]
[356753979,1743115844320,-500.0,0.0004,30]
[356753981,1743115844330,-500.0,0.0004,120]
[356753983,1743115844339,-500.0,0.0004,30]
[356753985,1743115844349,-500.0,0.0004,120]
[356753987,1743115844358,-500.0,0.0004,30]
[356753989,1743115844367,-500.0,0.0004,120]
[356753991,1743115844376,-500.0,0.0004,30]
[356753993,1743115844385,-500.0,0.0004,120]
[356753995,1743115844394,-500.0,0.0004,30]
[356753997,1743115844404,-500.0,0.0004,30]
[356753999,1743115844413,-578.86442708,0.0004,120]
[356754001,1743115844422,-500.0,0.0004,30]
[356754003,1743115844431,-500.0,0.0004,30]
[356754005,1743115844440,-500.0,0.0004,30]
[356754006,1743115844449,-500.0,0.0004,30]
[356754007,1743115844458,-500.0,0.0004,30]
[356754008,1743115844467,-500.0,0.0004,30]
[356754009,1743115844477,-500.0,0.0004,30]
[356754010,1743115844486,-500.0,0.0004,30]
[356754011,1743115844496,-500.0,0.0004,30]
[356754012,1743115844505,-500.0,0.0004,30]
[356754013,1743115844514,-500.0,0.0004,30]
[356754014,1743115844523,-500.0,0.0004,30]
[356754015,1743115844533,-304.44551555,0.0004,30]
[356754016,1743115844542,-151.0,0.0004,14]
[356754017,1743115844551,-151.0,0.0004,14]
[356754018,1743115844562,-161.301749,0.0004,14]
[356754019,1743115844571,-1000.0,0.0004,13]
[356754020,1743115844580,-151.0,0.0004,14]
[356754021,1743115844589,-178.298008,0.0004,14]
[356754022,1743115844598,-151.0,0.0004,14]
[356754023,1743115844607,-151.0,0.0004,14]
[356754024,1743115844617,-383.717943,0.0004,14]
[356754025,1743115844626,-383.717943,0.0004,14]
[356754026,1743115844635,-383.717943,0.0004,14]
[356754027,1743115844645,-383.717943,0.0004,14]